bitfinex/quotes_SOLUSD_20230103
["timestamp","ask_amount","ask_price","bid_price","bid_amount"]
[1672758258599,10.73510654,12.316,12.299,34.17634563]
[1672758258808,30.0,12.314,12.299,34.17634563]
[1672758259131,30.0,12.312,12.299,34.17634563]
[1672758259742,130.28579209,12.311,12.299,34.17634563]
[1672758260074,30.0,12.31,12.299,34.17634563]
[1672758260478,99.30579209,12.31,12.299,34.17634563]
[1672758261961,30.0,12.31,12.299,34.17634563]
[1672758262588,99.30579209,12.31,12.299,34.17634563]
[1672758265309,160.29579209,12.31,12.299,34.17634563]
[1672758265526,99.30579209,12.31,12.299,34.17634563]
[1672758266063,46.5521,12.312,12.3,32.03]
[1672758266376,46.5521,12.312,12.301,46.3807499]
[1672758266572,46.5521,12.312,12.302,20.0]
[1672758266897,115.1667,12.313,12.303,46.3807499]
[1672758267114,115.1667,12.313,12.304,20.0]
[1672758267508,30.0,12.312,12.305,46.3807499]
[1672758267734,30.0,12.312,12.306,20.0]
[1672758268166,115.1667,12.313,12.307,46.3807499]
[1672758268478,115.1667,12.313,12.308,20.0]
[1672758268680,30.0,12.312,12.308,20.0]
[1672758268892,30.0,12.312,12.309,46.3807499]
[1672758271712,30.0,12.315,12.309,46.3807499]
[1672758274256,108.0318,12.316,12.309,46.3807499]
[1672758274465,30.0,12.315,12.309,46.3807499]
[1672758275518,69.30579209,12.314,12.309,46.3807499]
[1672758275919,30.0,12.313,12.309,46.3807499]
[1672758277304,30.0,12.313,12.31,20.0]
[1672758278462,30.0,12.313,12.305,66.20741657]
[1672758278671,69.30579209,12.314,12.305,66.20741657]
[1672758278894,30.0,12.313,12.306,46.20741657]
[1672758279086,30.0,12.313,12.307,20.0]
[1672758279404,69.30579209,12.312,12.307,20.0]
[1672758279814,69.30579209,12.312,12.307,70.76133009]
[1672758280244,30.0,12.311,12.307,70.76133009]
[1672758281818,30.0,12.313,12.307,20.0]
[1672758282010,30.0,12.313,12.304,50.76133009]
[1672758282230,30.0,12.313,12.305,20.0]
[1672758282872,30.0,12.313,12.305,70.76133009]
[1672758283092,99.30579209,12.313,12.305,70.76133009]
[1672758284145,11.95,12.31,12.29,11.93]
[1672758284463,130.29579209,12.309,12.3,20.0]
[1672758284857,99.30579209,12.308,12.3,20.0]
[1672758285069,99.30579209,12.308,12.296,20.0]
[1672758285275,184.39959209,12.307,12.296,20.0]
[1672758285510,184.39959209,12.307,12.296,64.59759675]
[1672758285712,69.30579209,12.306,12.296,64.59759675]
[1672758285933,30.0,12.308,12.296,64.59759675]
[1672758286121,30.0,12.309,12.296,64.59759675]
[1672758286325,69.30579209,12.31,12.296,64.59759675]
[1672758286865,30.0,12.309,12.296,64.59759675]
[1672758287590,118.6767,12.308,12.296,64.59759675]
[1672758288867,30.0,12.307,12.296,64.59759675]
[1672758290749,156.0608,12.308,12.297,30.0]
[1672758290965,156.0608,12.308,12.298,20.0]
[1672758291166,156.0608,12.308,12.298,71.88271009]
[1672758291377,30.0,12.312,12.299,51.88271009]
[1672758291587,30.0,12.312,12.3,32.03]
[1672758292016,30.0,12.312,12.301,51.88271009]
[1672758292340,30.0,12.312,12.302,20.0]
[1672758292863,30.0,12.312,12.303,51.88271009]
[1672758293180,30.0,12.312,12.304,20.0]
[1672758293602,30.0,12.312,12.305,50.71141009]
[1672758293927,30.0,12.312,12.306,20.0]
[1672758294743,30.0,12.312,12.301,67.7973]
[1672758296209,30.0,12.312,12.301,114.67423009]
[1672758297256,30.0,12.312,12.301,67.7973]
[1672758299162,30.0,12.313,12.302,50.58305675]
[1672758299378,30.0,12.313,12.303,20.0]
[1672758299800,30.0,12.313,12.304,50.58305675]
[1672758300130,30.0,12.313,12.305,20.0]
[1672758301467,30.0,12.313,12.302,20.0]
[1672758302435,186.7799,12.315,12.302,70.06305675]
[1672758302844,256.08569209,12.315,12.302,70.06305675]
[1672758303052,226.08569209,12.315,12.302,70.06305675]
[1672758303379,60.93,12.321,12.303,9.55001693]
[1672758303592,30.0,12.321,12.305,30.0]
[1672758303995,30.0,12.321,12.306,80.38557445]
[1672758304214,93.75570999,12.321,12.306,60.38557445]
[1672758304420,110.0239,12.32,12.305,46.6042]
[1672758304631,30.0,12.319,12.305,46.6042]
[1672758304842,180.1628,12.318,12.305,46.6042]
[1672758305057,243.91850999,12.318,12.305,46.6042]
[1672758305273,30.0,12.317,12.305,46.6042]
[1672758305465,30.0,12.315,12.305,46.6042]
[1672758305677,60.97,12.314,12.305,46.6042]
[1672758306092,79.0839,12.317,12.306,20.0]
[1672758306302,79.0839,12.317,12.305,98.06274663]
[1672758306512,79.0839,12.317,12.307,51.45854663]
[1672758306724,49.0839,12.317,12.307,51.45854663]
[1672758307455,30.0,12.316,12.307,51.45854663]
[1672758307666,30.0,12.316,12.308,20.0]
[1672758309560,49.0839,12.317,12.309,51.45854663]
[1672758309795,49.0839,12.317,12.31,20.0]
[1672758310005,30.0,12.316,12.31,20.0]
[1672758310749,49.0839,12.317,12.31,20.0]
[1672758311266,119.2128,12.318,12.31,20.0]
[1672758311466,30.0,12.317,12.31,20.0]
[1672758312948,30.0,12.317,12.306,20.0]
[1672758313364,30.0,12.317,12.306,71.45854663]
[1672758316204,30.0,12.317,12.306,20.0]
[1672758316928,30.0,12.315,12.306,20.0]
[1672758318210,30.0,12.315,12.306,70.59187996]
[1672758322493,78.1116,12.317,12.306,70.59187996]
[1672758322706,48.1116,12.317,12.306,70.59187996]
[1672758323778,60.94,12.32,12.306,69.09187996]
[1672758323978,180.46620999,12.322,12.306,69.09187996]
[1672758324299,30.0,12.319,12.306,96.74317996]
[1672758324933,93.75570999,12.319,12.306,96.74317996]
[1672758325146,141.42920999,12.319,12.306,96.74317996]
[1672758325563,141.42920999,12.319,12.307,20.0]
[1672758325766,30.0,12.317,12.307,20.0]
[1672758325977,77.6735,12.319,12.307,70.07187996]
[1672758326312,77.6735,12.319,12.31,11.98]
[1672758326500,47.6735,12.319,12.31,11.98]
[1672758326712,30.0,12.321,12.31,11.98]
[1672758326923,30.0,12.321,12.311,20.0]
[1672758327255,116.7105,12.322,12.312,80.07187996]
[1672758327447,116.7105,12.322,12.313,7.84583051]
[1672758327657,116.7105,12.322,12.314,20.0]
[1672758327867,116.7105,12.322,12.315,7.84583051]
[1672758328200,116.7105,12.322,12.316,20.0]
[1672758328616,116.7105,12.322,12.314,20.0]
[1672758328828,116.7105,12.322,12.315,2.08299133]
[1672758329037,116.7105,12.322,12.314,20.0]
[1672758330075,30.0,12.321,12.314,20.0]
[1672758330491,30.0,12.321,12.312,20.0]
[1672758333118,116.7105,12.322,12.312,20.0]
[1672758333329,116.7105,12.322,12.312,66.08521329]
[1672758333561,30.0,12.321,12.312,66.08521329]
[1672758335008,30.0,12.321,12.312,20.0]
[1672758336923,177.6405,12.322,12.312,20.0]
[1672758337132,116.7105,12.322,12.312,20.0]
[1672758337556,30.0,12.321,12.312,20.0]
[1672758338499,63.75570999,12.326,12.321,13.57797636]
[1672758338709,1.74859586,12.343,12.326,8.59114473]
[1672758339111,75.03937879,12.346,12.331,42.13163915]
[1672758339334,75.03937879,12.346,12.345,1.74859586]
[1672758339545,75.03937879,12.346,12.333,42.13163915]
[1672758339744,30.0,12.345,12.333,106.02469888]
[1672758339954,30.0,12.345,12.334,63.89305973]
[1672758340165,30.0,12.345,12.336,42.13163915]
[1672758340377,30.0,12.345,12.338,42.13163915]
[1672758340601,30.0,12.345,12.34,42.13163915]
[1672758340814,30.0,12.345,12.342,42.13163915]
[1672758341007,30.0,12.345,12.344,42.13163915]
[1672758341427,30.0,12.345,12.331,30.0]
[1672758341428,30.0,12.345,12.331,42.13163915]
[1672758341633,30.0,12.341,12.331,42.13163915]
[1672758341858,90.84,12.341,12.331,42.13163915]
[1672758342068,30.0,12.341,12.331,42.13163915]
[1672758343951,30.0,12.341,12.328,42.13163915]
[1672758344176,30.0,12.341,12.33,42.13163915]
[1672758344375,30.0,12.341,12.332,42.13163915]
[1672758344586,30.0,12.341,12.334,42.13163915]
[1672758344587,30.0,12.339,12.334,42.13163915]
[1672758344797,30.0,12.339,12.336,42.13163915]
[1672758345008,30.0,12.341,12.338,42.13163915]
[1672758345009,60.84,12.341,12.338,42.13163915]
[1672758345229,102.96163915,12.342,12.34,42.13163915]
[1672758345424,30.0,12.341,12.334,42.13163915]
[1672758345633,102.96163915,12.342,12.336,42.13163915]
[1672758345863,42.13163915,12.342,12.337,20.0]
[1672758346074,30.0,12.341,12.338,42.13163915]
[1672758346263,42.13163915,12.342,12.337,20.0]
[1672758346264,42.13163915,12.342,12.339,20.0]
[1672758346472,42.13163915,12.342,12.34,42.13163915]
[1672758346683,42.13163915,12.342,12.338,42.13163915]
[1672758347017,30.0,12.341,12.34,42.13163915]
[1672758347244,30.0,12.341,12.34,62.13163915]
[1672758347626,91.37790299,12.341,12.34,62.13163915]
[1672758350276,158.76631803,12.341,12.34,62.13163915]
[1672758350489,158.76631803,12.341,12.34,20.0]
[1672758350694,91.37790299,12.341,12.329,20.0]
[1672758350908,11.95,12.34,12.33,42.13163915]
[1672758351117,61.37790299,12.341,12.331,20.0]
[1672758351438,61.37790299,12.339,12.332,42.13163915]
[1672758351646,61.37790299,12.339,12.333,20.0]
[1672758351838,42.13163915,12.342,12.334,42.13163915]
[1672758352055,42.13163915,12.342,12.335,20.0]
[1672758352377,42.13163915,12.342,12.336,42.13163915]
[1672758352589,42.13163915,12.342,12.338,42.13163915]
[1672758352908,42.13163915,12.342,12.34,42.13163915]
[1672758353115,42.13163915,12.342,12.341,20.0]
[1672758353735,42.13163915,12.342,12.334,30.0]
[1672758353952,42.13163915,12.342,12.336,30.0]
[1672758354278,42.13163915,12.342,12.337,62.13163915]
[1672758354588,42.13163915,12.342,12.339,42.13163915]
[1672758354804,42.13163915,12.342,12.341,42.13163915]
[1672758355007,42.13163915,12.342,12.341,62.13163915]
[1672758358590,35.49453915,12.342,12.341,62.13163915]
[1672758358996,75.03937879,12.346,12.342,30.0]
[1672758359206,75.03937879,12.346,12.343,62.13163915]
[1672758359410,75.03937879,12.346,12.344,30.0]
[1672758359626,75.03937879,12.346,12.345,62.13163915]
[1672758364993,75.03937879,12.346,12.345,20.0]
[1672758365201,75.03937879,12.346,12.337,42.13163915]
[1672758365410,75.03937879,12.346,12.339,42.13163915]
[1672758365622,75.03937879,12.346,12.341,42.13163915]
[1672758365827,75.03937879,12.346,12.342,20.0]
[1672758366245,50.03937879,12.346,12.342,20.0]
[1672758366462,360.75696361,12.364,12.343,30.0]
[1672758366673,542.44436361,12.364,12.343,30.0]
[1672758366999,361.17155333,12.362,12.343,30.0]
[1672758367198,90.74,12.361,12.343,30.0]
[1672758367619,363.12384196,12.358,12.343,30.0]
[1672758367944,368.79142463,12.356,12.343,30.0]
[1672758368266,368.79142463,12.356,12.344,20.0]
[1672758368569,368.58278886,12.36,12.344,20.0]
[1672758368784,30.0,12.359,12.344,20.0]
[1672758368978,361.17155333,12.362,12.344,20.0]
[1672758369188,368.13834783,12.359,12.345,30.0]
[1672758369409,368.13834783,12.359,12.346,20.0]
[1672758369633,360.19642704,12.361,12.346,20.0]
[1672758369817,361.17155333,12.362,12.35,11.93]
[1672758370029,364.99845063,12.367,12.35,11.93]
[1672758370239,365.37988438,12.365,12.35,11.93]
[1672758370461,60.72,12.364,12.35,11.93]
[1672758370675,360.58685101,12.363,12.35,11.93]
[1672758370885,360.19642704,12.361,12.35,11.93]
[1672758371095,368.13834783,12.359,12.351,20.0]
[1672758371307,360.19642704,12.361,12.351,20.0]
[1672758371705,368.58278886,12.36,12.351,20.0]
[1672758371921,360.19642704,12.361,12.351,35.21]
[1672758372125,360.58685101,12.363,12.351,20.0]
[1672758372345,30.0,12.362,12.349,1.96]
[1672758372568,360.19642704,12.361,12.35,11.9]
[1672758372778,360.58685101,12.363,12.35,11.9]
[1672758372993,30.0,12.362,12.35,11.9]
[1672758373309,360.58685101,12.363,12.35,11.9]
[1672758373506,360.58685101,12.363,12.351,26.41]
[1672758373928,360.58685101,12.363,12.352,30.0]
[1672758374148,360.75696361,12.364,12.353,20.0]
[1672758374349,421.47696361,12.364,12.353,20.0]
[1672758374560,30.0,12.363,12.353,20.0]
[1672758374770,30.0,12.36,12.351,20.0]
[1672758374977,361.17155333,12.362,12.351,20.0]
[1672758375207,368.58278886,12.36,12.351,20.0]
[1672758375396,360.19642704,12.361,12.351,20.0]
[1672758375604,360.58685101,12.363,12.351,20.0]
[1672758376345,360.19642704,12.361,12.351,20.0]
[1672758376569,361.38084868,12.368,12.353,30.0]
[1672758376766,363.11223463,12.366,12.354,31.69]
[1672758376974,30.0,12.365,12.355,20.0]
[1672758377189,363.11223463,12.366,12.355,20.0]
[1672758377821,365.37988438,12.365,12.355,20.0]
[1672758378346,364.99845063,12.367,12.355,20.0]
[1672758378560,365.37988438,12.365,12.354,20.0]
[1672758378760,360.58685101,12.363,12.353,20.0]
[1672758379181,360.19642704,12.361,12.351,49.112]
[1672758379393,368.13834783,12.359,12.35,11.94]
[1672758379601,368.58278886,12.36,12.35,11.94]
[1672758379826,361.17155333,12.362,12.35,11.94]
[1672758380041,368.58278886,12.36,12.35,11.94]
[1672758380232,30.0,12.361,12.35,11.94]
[1672758380441,368.58278886,12.36,12.35,11.94]
[1672758380652,30.0,12.357,12.35,11.94]
[1672758380872,368.13834783,12.359,12.346,45.09]
[1672758381282,365.1765628,12.366,12.35,11.9]
[1672758381497,368.71171319,12.362,12.351,51.52]
[1672758382134,30.0,12.361,12.351,51.52]
[1672758382453,30.0,12.359,12.351,51.52]
[1672758382646,390.40690181,12.359,12.348,59.92]
[1672758382857,423.82101595,12.358,12.347,24.9482]
[1672758383498,423.82101595,12.358,12.346,46.3721]
[1672758383813,30.0,12.357,12.346,46.3721]
[1672758384022,60.76,12.356,12.343,23.7798]
[1672758384240,60.76,12.356,12.341,58.54]
[1672758384443,30.0,12.355,12.341,58.54]
[1672758384786,368.87231948,12.379,12.357,79.65043621]
[1672758384982,368.87231948,12.379,12.351,58.45]
[1672758384983,364.42690038,12.374,12.351,58.45]
[1672758385193,366.53269962,12.372,12.351,238.5062]
[1672758385519,361.65408825,12.376,12.352,65.30485973]
[1672758385736,367.3815002,12.373,12.352,71.0891]
[1672758385930,360.43033571,12.369,12.352,71.0891]
[1672758386140,60.7,12.368,12.353,20.0]
[1672758386346,30.0,12.366,12.353,20.0]
[1672758386547,30.0,12.366,12.345,84.8083]
[1672758386548,91.0891,12.35,12.346,109.7616]
[1672758386763,91.0891,12.35,12.341,60.84]
[1672758387614,0.0091,12.35,12.342,30.0]
[1672758387828,0.0091,12.35,12.343,60.83]
[1672758388025,364.00763963,12.365,12.344,30.0]
[1672758388239,369.20205367,12.363,12.35,11.86]
[1672758388450,367.04170004,12.361,12.351,60.79]
[1672758388665,30.0,12.368,12.351,60.79]
[1672758388666,366.5447075,12.382,12.351,60.79]
[1672758388883,360.47719229,12.38,12.353,30.0]
[1672758389094,361.63056769,12.378,12.354,151.1984]
[1672758389302,367.48081944,12.375,12.354,207.3339264]
[1672758389515,367.3815002,12.373,12.354,70.4284]
[1672758389726,360.43033571,12.369,12.354,70.4284]
[1672758390038,364.00763963,12.365,12.354,70.4284]
[1672758390247,364.00763963,12.365,12.34,89.53]
[1672758390248,369.20205367,12.363,12.343,171.1466]
[1672758390456,11.86,12.36,12.343,60.83]
[1672758390669,11.86,12.36,12.34,36.5029]
[1672758390670,53.6934,12.362,12.342,30.0]
[1672758390877,60.75,12.359,12.343,60.83]
[1672758391073,0.63,12.359,12.343,60.83]
[1672758391284,30.0,12.358,12.343,60.83]
[1672758392237,30.0,12.359,12.344,30.0]
[1672758392462,30.0,12.36,12.345,60.82]
[1672758392669,114.8869,12.361,12.346,30.0]
[1672758392878,364.00763963,12.365,12.35,11.93]
[1672758393075,369.20205367,12.363,12.351,80.79]
[1672758393285,364.00763963,12.365,12.351,80.79]
[1672758393604,369.20205367,12.363,12.351,80.79]
[1672758394033,30.0,12.362,12.351,80.79]
[1672758396035,30.0,12.362,12.351,20.0]
[1672758396242,30.0,12.362,12.35,20.0]
[1672758396685,364.00763963,12.365,12.35,20.0]
[1672758396900,369.20205367,12.363,12.351,30.0]
[1672758397091,369.20205367,12.363,12.352,20.0]
[1672758397303,364.00763963,12.365,12.352,20.0]
[1672758397513,364.00763963,12.365,12.353,60.78]
[1672758397842,30.0,12.366,12.354,20.0]
[1672758398249,30.0,12.366,12.353,60.78]
[1672758398457,30.0,12.366,12.352,60.78]
[1672758398890,76.7735,12.368,12.352,60.78]
[1672758399084,76.7735,12.368,12.353,30.0]
[1672758399295,46.7735,12.368,12.354,60.77]
[1672758399512,46.7735,12.368,12.355,30.0]
[1672758399729,46.7735,12.368,12.356,60.76]
[1672758399936,46.7735,12.368,12.353,138.3989]
[1672758400146,46.7735,12.368,12.354,20.0]
[1672758400359,46.7735,12.368,12.355,60.77]
[1672758400571,30.0,12.367,12.356,20.0]
[1672758400882,30.0,12.367,12.353,77.6189]
[1672758401104,30.0,12.367,12.354,80.77]
[1672758403411,5.0,12.367,12.354,20.0]
[1672758403613,30.0,12.368,12.355,37.51]
[1672758404245,90.7,12.368,12.354,5.1365585]
[1672758404765,90.7,12.368,12.354,43.7265585]
[1672758405184,123.191579,12.368,12.355,20.0]
[1672758405505,123.191579,12.368,12.354,43.7265585]
[1672758405720,123.191579,12.368,12.355,20.0]
[1672758406042,123.191579,12.368,12.354,5.1365585]
[1672758406449,123.191579,12.368,12.355,20.0]
[1672758406984,123.191579,12.368,12.354,67.06]
[1672758407176,123.191579,12.368,12.355,20.0]
[1672758407598,123.191579,12.368,12.354,20.0]
[1672758408347,173.0356134,12.368,12.354,20.0]
[1672758408563,216.96927748,12.368,12.354,20.0]
[1672758408974,5.58,12.36,12.345,52.27]
[1672758409296,30.0,12.358,12.344,48.5692]
[1672758409491,30.0,12.358,12.343,52.28]
[1672758409492,60.76,12.357,12.343,52.28]
[1672758409703,30.0,12.356,12.343,52.28]
[1672758409904,30.0,12.356,12.343,30.0]
[1672758409905,80.62443169,12.356,12.343,30.0]
[1672758410119,80.62443169,12.356,12.344,48.11]
[1672758410329,80.62443169,12.356,12.343,48.12]
[1672758410564,80.62443169,12.356,12.343,30.0]
[1672758410873,57.47109836,12.355,12.342,42.08194338]
[1672758411062,30.0,12.353,12.34,48.5692]
[1672758411276,30.0,12.353,12.339,30.0]
[1672758411482,87.47109836,12.353,12.34,49.52]
[1672758411719,60.77,12.355,12.341,30.0]
[1672758412035,49.1727,12.356,12.343,30.0]
[1672758412225,49.1727,12.356,12.342,49.08]
[1672758412974,30.0,12.358,12.343,20.0]
[1672758413379,60.76,12.357,12.343,20.0]
[1672758413708,30.0,12.356,12.341,20.0]
[1672758413927,30.0,12.37,12.35,5.55]
[1672758414231,30.0,12.37,12.351,73.85]
[1672758414450,30.0,12.37,12.351,86.50987586]
[1672758414640,60.71,12.367,12.351,86.50987586]
[1672758415290,30.0,12.366,12.352,12.65987586]
[1672758415495,60.72,12.365,12.353,20.0]
[1672758415708,30.0,12.364,12.351,20.0]
[1672758415921,30.0,12.364,12.352,55.71]
[1672758416109,169.1228,12.367,12.353,20.0]
[1672758416320,30.0,12.366,12.353,20.0]
[1672758416526,30.0,12.366,12.353,90.46987586]
[1672758417585,90.71,12.366,12.353,20.0]
[1672758417802,90.71,12.366,12.352,20.0]
[1672758418336,30.0,12.366,12.353,55.95]
[1672758418549,60.72,12.365,12.354,20.0]
[1672758418751,90.71,12.366,12.353,57.84]
[1672758418964,30.0,12.366,12.354,20.0]
[1672758420441,90.71,12.366,12.354,20.0]
[1672758420652,30.0,12.366,12.35,20.0]
[1672758420841,30.0,12.366,12.351,58.56]
[1672758421053,60.72,12.365,12.352,20.0]
[1672758421263,30.0,12.364,12.352,20.0]
[1672758421488,60.73,12.363,12.352,20.0]
[1672758421697,60.73,12.363,12.349,76.0]
[1672758421914,30.0,12.364,12.349,76.0]
[1672758422432,60.73,12.363,12.349,20.0]
[1672758422644,30.0,12.362,12.349,20.0]
[1672758422856,30.0,12.362,12.347,73.18]
[1672758423071,30.0,12.362,12.348,30.0]
[1672758423261,30.0,12.362,12.349,74.05]
[1672758424100,30.0,12.362,12.35,30.0]
[1672758424311,60.73,12.363,12.351,20.0]
[1672758424516,30.0,12.364,12.351,20.0]
[1672758424739,30.0,12.364,12.352,51.08]
[1672758424949,108.4128,12.367,12.353,20.0]
[1672758425177,30.0,12.366,12.354,51.07]
[1672758425580,30.0,12.366,12.355,20.0]
[1672758425907,30.0,12.366,12.356,54.34]
[1672758426111,30.0,12.366,12.357,17.5]
[1672758426646,30.0,12.366,12.353,12.65987586]
[1672758426832,30.0,12.366,12.354,56.45]
[1672758427044,30.0,12.366,12.355,20.0]
[1672758427258,108.4128,12.367,12.356,58.86]
[1672758427587,108.4128,12.367,12.357,20.0]
[1672758428099,48.2928,12.367,12.358,60.75]
[1672758428431,30.0,12.385,12.36,5.58]
[1672758428642,60.62,12.384,12.361,80.74]
[1672758428830,60.65,12.378,12.361,80.74]
[1672758429265,30.0,12.377,12.361,44.16642683]
[1672758429686,30.0,12.377,12.356,12.65987586]
[1672758430011,30.0,12.377,12.358,30.0]
[1672758430320,60.66,12.376,12.36,30.0]
[1672758430525,60.66,12.376,12.361,60.74]
[1672758430757,60.66,12.376,12.362,30.0]
[1672758431142,30.0,12.375,12.363,20.0]
[1672758431347,60.66,12.376,12.362,32.65987586]
[1672758431570,30.0,12.377,12.362,32.65987586]
[1672758431789,60.66,12.376,12.362,20.0]
[1672758432212,60.66,12.376,12.362,62.65987586]
[1672758432433,30.0,12.377,12.362,62.15987586]
[1672758433033,60.66,12.376,12.362,19.5]
[1672758433556,60.66,12.376,12.358,55.16]
[1672758433762,119.881,12.384,12.379,12.65987586]
[1672758433981,41.63010709,12.391,12.363,55.39]
[1672758434210,149.881,12.39,12.364,50.0]
[1672758434521,149.881,12.39,12.363,55.39]
[1672758434522,102.23010709,12.389,12.363,55.39]
[1672758434726,5.58,12.38,12.359,56.41]
[1672758434925,90.65,12.379,12.358,30.0]
[1672758435141,210.531,12.379,12.36,30.0]
[1672758435350,30.0,12.378,12.362,30.0]
[1672758435572,30.0,12.378,12.363,50.11]
[1672758435976,29.5,12.378,12.363,50.11]
[1672758436405,29.5,12.378,12.361,49.07]
[1672758436612,84.71703503,12.378,12.361,49.07]
[1672758436828,84.71703503,12.378,12.359,61.79987586]
[1672758437148,29.5,12.378,12.36,50.0]
[1672758437379,29.5,12.378,12.361,50.57]
[1672758437557,29.5,12.378,12.363,30.0]
[1672758437769,29.5,12.378,12.364,72.52]
[1672758439152,29.5,12.378,12.365,12.65987586]
[1672758439360,29.5,12.378,12.366,20.0]
[1672758439768,90.15,12.378,12.366,20.0]
[1672758440099,29.5,12.378,12.362,20.0]
[1672758440406,29.5,12.378,12.36,20.0]
[1672758440620,30.0,12.376,12.361,50.35]
[1672758440810,30.0,12.376,12.362,20.0]
[1672758441251,30.0,12.376,12.363,51.45]
[1672758441467,30.0,12.376,12.364,20.0]
[1672758442083,30.0,12.376,12.361,73.02]
[1672758442719,5.58,12.37,12.361,20.0]
[1672758442925,30.0,12.368,12.351,118.5455]
[1672758443142,60.71,12.367,12.351,118.5455]
[1672758443679,60.71,12.367,12.352,30.0]
[1672758443863,60.71,12.367,12.353,40.87]
[1672758444071,30.0,12.366,12.353,53.52987586]
[1672758444386,30.0,12.366,12.353,12.65987586]
[1672758444601,30.0,12.366,12.354,20.0]
[1672758444806,60.71,12.367,12.354,20.0]
[1672758445016,60.71,12.367,12.355,42.65987586]
[1672758445441,90.7,12.368,12.355,42.65987586]
[1672758445856,90.7,12.368,12.355,12.65987586]
[1672758447138,90.7,12.368,12.356,20.0]
[1672758447540,90.7,12.368,12.356,32.65987586]
[1672758447749,90.7,12.368,12.356,20.0]
[1672758447978,60.7,12.368,12.356,12.65987586]
[1672758448174,108.0272,12.369,12.357,20.0]
[1672758448383,108.0272,12.369,12.359,30.0]
[1672758448593,60.66,12.377,12.36,71.67]
[1672758448799,147.2547,12.376,12.36,71.67]
[1672758449443,117.2547,12.376,12.361,12.65987586]
[1672758449644,117.2547,12.376,12.363,30.0]
[1672758449857,117.2547,12.376,12.365,30.0]
[1672758450066,117.2547,12.376,12.366,20.0]
[1672758450605,60.64,12.38,12.366,32.65987586]
[1672758450809,30.0,12.379,12.366,20.0]
[1672758451529,30.0,12.377,12.363,20.0]
[1672758451741,30.0,12.377,12.364,60.72]
[1672758451955,30.0,12.377,12.365,20.0]
[1672758452610,30.0,12.377,12.363,20.0]
[1672758452824,30.0,12.377,12.364,60.72]
[1672758453033,30.0,12.377,12.365,20.0]
[1672758453648,30.0,12.377,12.364,30.0]
[1672758453876,30.0,12.379,12.365,80.72]
[1672758454088,30.0,12.379,12.366,30.0]
[1672758454612,30.0,12.379,12.367,20.0]
[1672758454829,30.0,12.379,12.365,80.72]
[1672758455024,30.0,12.379,12.365,20.0]
[1672758455657,30.0,12.379,12.364,20.0]
[1672758455866,30.0,12.379,12.366,30.0]
[1672758456188,30.0,12.379,12.367,20.0]
[1672758456612,30.0,12.379,12.368,48.1688098]
[1672758456927,30.0,12.379,12.369,20.0]
[1672758457136,27.5,12.379,12.369,20.0]
[1672758457335,90.64,12.381,12.37,73.79614314]
[1672758457542,90.64,12.381,12.371,20.0]